{"text_format":"1","workbook":"xlsx","n_sheets":5,"sheets":["Résumé","Astérix","Alix","Les 4 as","Tintin"],"not_rendered":{"charts":0,"images":0,"macros":1,"external_links":0,"defined_names":1,"comments":0,"pivot_tables":0},"unopened":[],"bounds":{"document_bytes":16777216,"sheet_cells":100000,"rows_first":2000,"rows_last":500,"rows_between":2000,"halvings":0,"cell_chars":16384,"cell_head_chars":4096},"cells_cut":0,"cells_raw":0,"read":"whole","date_system":"1900"}

{"sheet":"Résumé","index":0,"n_rows":73,"n_cols":7,"rows_kept":73,"cut":false,"hidden":false,"merged":[]}
["Titres","Numéros","Last","Nr","Amazon","Carrefour","Cora"]
[]
["Les 4 As","Robinson, Atlantide",null,2]
["Alix","1-19 [-O Alexandrie],23",null,20]
["Alix Senateur","1-3,5",5,{"$f":"NRALBUMS(B5)","v":4},null,13.95]
["L'agent 212","1,6,7,13,17,21,22,24",null,{"$f":"NRALBUMS(B6)","v":8}]
["Alde-Betel-Anta-Surv","1-5 / 1-5 / 1-6 / 1-5",null,{"$f":"NRALBUMS(B7)","v":21}]
["Alef-Thau","1-8",null,{"$f":"NRALBUMS(B8)","v":8}]
["Alpha","1-12 / 1-2,4",null,{"$f":"NRALBUMS(B9)","v":15}]
["Aria","1-30, 32, 38",38,{"$f":"NRALBUMS(B10)","v":32}]
["Astérix","6,10,11,15,26,31 / 1,3",null,{"$f":"NRALBUMS(B11)","v":8}]
["Benoît Brisefer","1-11,13-14",14,{"$f":"NRALBUMS(B12)","v":13}]
["Les Blondes","1-8, 10, 13",null,{"$f":"NRALBUMS(B13)","v":10}]
["Black et Mortimer","1-20,22-24",null,{"$f":"NRALBUMS(B14)","v":23}]
["Boule et Bill","1-25,28-34",34,{"$f":"NRALBUMS(B15)","v":32},10.07,10.6]
["Buck Danny","5-9",null,{"$f":"NRALBUMS(B16)","v":5}]
["Cédric","1-22,27-31",31,{"$f":"NRALBUMS(B17)","v":27},10.07,10.6]
["Claire","1-6, 8-12, 14-15",null,{"$f":"NRALBUMS(B18)","v":13}]
["Clifton","1-22",null,{"$f":"NRALBUMS(B19)","v":22}]
["Dany","1-2",null,{"$f":"NRALBUMS(B20)","v":2}]
["Exit","1-4",null,{"$f":"NRALBUMS(B21)","v":4}]
["Femme en blanc","1-9,12-20,22-25,27-28",null,{"$f":"NRALBUMS(B22)","v":24},null,10.6]
["Gaston la Gaffe","1-5, 9-14",null,{"$f":"NRALBUMS(B23)","v":11}]
["Hans","1-12",null,{"$f":"NRALBUMS(B24)","v":12}]
["Incal (Avant-X-Final-Après)","1-6 / 1-6 / 1-3 / 1",null,{"$f":"NRALBUMS(B25)","v":16}]
["Isidore","1,3-8",null,{"$f":"NRALBUMS(B26)","v":7}]
["Jo, Zette et Jocko","1-5",null,{"$f":"NRALBUMS(B27)","v":5}]
["Johan et Pirlouit","7-16",null,{"$f":"NRALBUMS(B28)","v":10},null,10.6]
["Julie, Claire et Cécile","1-20",null,{"$f":"NRALBUMS(B29)","v":20}]
["Kenia-Namibia","1-5 / 1-5",null,{"$f":"NRALBUMS(B30)","v":10}]
["Kid Paddle","1-10",null,{"$f":"NRALBUMS(B31)","v":10}]
["Kriss de Valnor","1-6",null,{"$f":"NRALBUMS(B32)","v":6}]
["La jeunesse de Thorgal","1-4",null,{"$f":"NRALBUMS(B33)","v":4}]
["Lady S","1-5, 8",null,{"$f":"NRALBUMS(B34)","v":6}]
["Largo Winch","1-20",null,{"$f":"NRALBUMS(B35)","v":20}]
["Lefranc","5,10",22,{"$f":"NRALBUMS(B36)","v":2}]
["Léonard","1-34,36,43-44",44,{"$f":"NRALBUMS(B37)","v":37},10.07,10.6]
["Louve (Thorgal)","1-5",null,{"$f":"NRALBUMS(B38)","v":5},null,12]
["Lucky Luke","1-12, 15-18, 40",null,{"$f":"NRALBUMS(B39)","v":17}]
["Mélusine","1-15",25,{"$f":"NRALBUMS(B40)","v":15}]
["Michel Vaillant","1-46, 54-59",null,{"$f":"NRALBUMS(B41)","v":52}]
["Neige",null,10,{"$f":"NRALBUMS(B42)","v":0},null,15]
["Neige - Fondation","1-3",3,{"$f":"NRALBUMS(B43)","v":3},null,15]
["Neige - Origine",null,2,{"$f":"NRALBUMS(B44)","v":0},null,15]
["Paparazzi","1-7",null,{"$f":"NRALBUMS(B45)","v":7}]
["Papyrus","1-29",31,{"$f":"NRALBUMS(B46)","v":29}]
["Petit Spirou","1-17",17,{"$f":"NRALBUMS(B47)","v":17},null,10.6]
["Petzi","1-20",null,{"$f":"NRALBUMS(B48)","v":20}]
["PSY","1-15,19",null,{"$f":"NRALBUMS(B49)","v":16}]
["Quick et Flupke","1-12",null,{"$f":"NRALBUMS(B50)","v":12}]
["Rani","1-4",null,{"$f":"NRALBUMS(B51)","v":4},null,14.45]
["Robin Dubois","1-19",21,{"$f":"NRALBUMS(B52)","v":19}]
["Sillage","1-6",16,{"$f":"NRALBUMS(B53)","v":6},null,14.95,12.7]
["Les Schtroumpfs","1-25",29,{"$f":"NRALBUMS(B54)","v":25}]
["Sophie Karamazout","1,2,4,5",null,{"$f":"NRALBUMS(B55)","v":4}]
["Terres Lointaines","1-3",null,{"$f":"NRALBUMS(B56)","v":3},null,12]
["Thorgal","1-35",34,{"$f":"NRALBUMS(B57)","v":35}]
["Tintin","2-5,9-17,20",null,{"$f":"NRALBUMS(B58)","v":14}]
["Titeuf","1-13",null,{"$f":"NRALBUMS(B59)","v":13}]
["Le Triangle Secret",null,null,{"$f":"NRALBUMS(B60)","v":0}]
["Le Triangle Secret - I.N.R.I.","1-4",null,{"$f":"NRALBUMS(B61)","v":4}]
["Le Triangle Secret - Herz",null,null,{"$f":"NRALBUMS(B62)","v":0}]
["Le Triangle Secret - Les gardiens du sang","1-3",null,{"$f":"NRALBUMS(B63)","v":3},null,15]
["Le troisième testament","1-4 /1-3",null,{"$f":"NRALBUMS(B64)","v":7},null,15]
["TomTom & Nana","1-33",null,{"$f":"NRALBUMS(B65)","v":33}]
["XIII","1-23",23,{"$f":"NRALBUMS(B66)","v":23},null,12]
["XIII Mystery","1",null,{"$f":"NRALBUMS(B67)","v":1}]
["Yoko Tsuno","1-27",null,{"$f":"NRALBUMS(B68)","v":27},null,10.6,9.45]
["Les zappeurs","2,3,5,7",null,{"$f":"NRALBUMS(B69)","v":4}]
[null,null,null,{"$f":"SUM(D3:D69)","v":887}]
["Asterix (allemand)","3, 7, 11, 13-14, 16, 18-19, 21",null,{"$f":"NRALBUMS(B71)","v":9}]
["Natacha (allemand)","2-5, 7-8",null,{"$f":"NRALBUMS(B72)","v":6}]
["Mademoiselle F"]

{"sheet":"Astérix","index":1,"n_rows":35,"n_cols":4,"rows_kept":35,"cut":false,"hidden":false,"merged":[]}
[1,null,"Astérix le gaulois"," 07/1961"]
[2,null," La serpe d'or"," 07/1962"]
[3,null," Astérix et les Goths"," 07/1963"]
[4,null," Astérix Gladiateur"," 07/1964"]
[5,null," Le tour de Gaule"," 01/1965"]
[6,null," Astérix et Cléopâtre"," 07/1965"]
[7,null," Le combat des chefs"," 01/1966"]
[8,null," Astérix chez les Bretons"," 07/1966"]
[9,null," Astérix et les Normands"," 10/1966"]
[10,null," Astérix Légionnaire"," 07/1967"]
[11,null," Le bouclier Arverne"," 01/1968"]
[12,null," Astérix aux jeux Olympiques"," 07/1968"]
[13,null," Astérix et le chaudron"," 01/1969"]
[14,null," Astérix en Hispanie"," 10/1969"]
[15,null," La zizanie"," 04/1970"]
[16,null," Astérix chez les Helvètes"," 10/1970"]
[17,null," Le domaine des dieux"," 10/1971"]
[18,null," Les lauriers de César"," 01/1972"]
[19,null," Le devin"," 10/1972"]
[20,null," Astérix en Corse"," 04/1973"]
[21,null," Le cadeau de César"," 07/1974"]
[22,null," La grande traversée"," 04/1975"]
[23,null," Obélix et compagnie"," 04/1976"]
[24,null," Astérix chez les Belges"," 01/1979"]
[25,null," Le Grand Fossé"," 04/1980"]
[26,null," L'odyssée d'Astérix"," 10/1981"]
[27,null," Le fils d'Astérix"," 10/1983"]
[28,null," Astérix chez Rahàzade"," 10/1987"]
[29,null," La rose et le glaive"," 10/1991"]
[30,null," La galère d'Obélix"," 07/1996"]
[31,null," Astérix et Latraviata"," 03/2001"]
[32,null," Astérix et la rentrée gauloise PUB"," 01/1993"]
[33,null," Le ciel lui tombe sur la tête"," 10/2005"]
[34,null," L'Anniversaire d'Astérix & Obélix - Le livre d'Or"," 10/2009"]
[35,null," Astérix chez les Pictes"," 10/2013"]

{"sheet":"Alix","index":2,"n_rows":33,"n_cols":4,"rows_kept":33,"cut":false,"hidden":false,"merged":[]}
[1,null,"Alix l'intrépide"," 01/2012"]
[2,null,"Le Sphinx d'or"," 01/2012"]
[3,null,"L'île maudite"," 01/2012"]
[4,null,"La tiare d'Oribal"," 02/2012"]
[5,null,"La griffe noire"," 02/2012"]
[6,null,"Les légions perdues"," 02/2012"]
[7,null,"Le dernier spartiate"," 02/2012"]
[8,null,"Le tombeau étrusque"," 02/2012"]
[9,null,"Le dieu sauvage"," 03/2012"]
[10,null,"Iorix le grand"," 03/2012"]
[11,null,"Le prince du Nil"," 03/2012"]
[12,null,"Le fils de Spartacus"," 04/2012"]
[13,null,"Le spectre de Carthage"," 04/2012"]
[14,null,"Les proies du volcan"," 04/2012"]
[15,null,"L'enfant grec"," 04/2012"]
[16,null,"La tour de Babel"," 05/2012"]
[17,null,"L'empereur de Chine"," 05/2012"]
[18,null,"Vercingétorix"," 05/2012"]
[19,null,"Le cheval de Troie"," 05/2012"]
[20,null,"Ô Alexandrie"," 05/2012"]
[21,null,"Les barbares"," 06/2012"]
[22,null,"La chute d'Icare"," 06/2012"]
[23,null,"Le fleuve de jade"," 06/2012"]
[24,null,"Roma, Roma..."," 06/2012"]
[25,null,"C'était à Khorsabad"," 07/2012"]
[26,null,"L'Ibère"," 07/2012"]
[27,null,"Le démon du Pharos"," 07/2012"]
[28,null,"La cité engloutie"," 07/2012"]
[29,null,"Le testament de César"," 07/2012"]
[30,null,"La conjuration de Baal"," 08/2012"]
[31,null,"l'ombre de Sarapis"," 02/2013"]
[32,null,"La Dernière Conquête"," 03/2013"]
[33,null,"Britannia"," 05/2014"]

{"sheet":"Les 4 as","index":3,"n_rows":43,"n_cols":2,"rows_kept":43,"cut":false,"hidden":false,"merged":[]}
[null,"Les 4 As et le Serpent de mer, 1964."]
[null,"Les 4 As et l'Aéroglisseur, 1964."]
[null,"Les 4 As et la Vache sacrée, 1964."]
[null,"Les 4 As et le Visiteur de minuit, 1965."]
[null,"Les 4 As et le Couroucou, 1966."]
[null,"Les 4 As et la Coupe d'or, 1967."]
[null,"Les 4 As et le Dragon des neiges, 1968."]
[null,"Les 4 As et le Rallye olympique, 1969."]
["X","Les 4 As et l'Île du Robinson, 1970."]
[null,"Les 4 As et le Tyran, 1971."]
[null,"Les 4 As et la Ruée vers l'or, 1973."]
[null,"Les 4 As et le Picasso volé, 1974."]
[null,"Les 4 As et la Bombe F, 1975."]
[null,"Les 4 As et la Saucisse volante, 1976."]
[null,"Les 4 As et le Gang des chapeaux blancs, 1977."]
[null,"Les 4 As et le Vaisseau fantôme, 1978."]
[null,"Les 4 As et le Diamant bleu, 1979."]
[null,"Les 4 As et la Licorne, 1980."]
[null,"Les 4 As et l'Iceberg, 1981."]
[null,"Les 4 As et le Château maléfique, 1982."]
[null,"Les 4 As et le Trésor des Tsars, 1983."]
[null,"Les 4 As et le Hold-up de la Big Bank, 1984."]
[null,"Les 4 As et le Magicien, 1985."]
[null,"Les 4 As et le Secret de la montagne, 1987."]
[null,"Les 4 As et la Déesse des mers, 1988."]
[null,"Les 4 As et la Navette spatiale, 1989."]
[null,"Les 4 As et le Requin géant, 1990."]
[null,"Les 4 As et l'Empire caché, 1991."]
[null,"Les 4 As et le Mystère de la jungle, 1992."]
[null,"Les 4 As et les Extraterrestres, 1993."]
[null,"Les 4 As et le Fantôme du mont Saint-Michel, 1994."]
[null,"Les 4 As et le Robot vandale, 1995."]
["X","Les 4 As et l'Atlantide, 1996."]
[null,"Les 4 As et les Sorcières, 1997."]
[null,"Les 4 As et les Dinosaures, 1998."]
[null,"Les 4 As et la Momie, 1999."]
[null,"Les 4 As et les Fantômes, 2000."]
[null,"Les 4 As et le Monstre des océans, 2001."]
[null,"Les 4 As et Halloween, 2002."]
[null,"Les 4 As et le Loup de Tasmanie, 2003."]
[null,"Les 4 As et le Grand Suprême, 2004."]
[null,"Mission Mars, 2005."]
[null,"La Balade des 4 As, 2007."]

{"sheet":"Tintin","index":4,"n_rows":23,"n_cols":3,"rows_kept":23,"cut":false,"hidden":false,"merged":[]}
[1,null,"Tintin au pays des Soviets "]
[2,null,"Tintin au Congo Divers"]
[3,null,"Tintin en Amérique Divers"]
[4,null,"Les Cigares du Pharaon Divers"]
[5,null,"Le Lotus Bleu Divers"]
[6,null,"L'Oreille Cassée Divers"]
[7,null,"L'Île Noire (édition originale en NB) Divers"]
[8,null,"Le Sceptre d'Ottokar Divers"]
[9,null,"Le Crabe aux Pinces d'Or Divers"]
[10,null,"L'Etoile Mystérieuse Divers"]
[11,null,"Le Secret de la Licorne Divers"]
[12,null,"Le Trésor de Rackham le Rouge Divers"]
[13,null,"Les Sept Boules de Cristal Divers"]
[14,null,"Le Temple du Soleil Divers"]
[15,null,"Au Pays de l'Or Noir Divers"]
[16,null,"Objectif Lune Divers"]
[17,null,"On a marché sur la Lune Divers"]
[18,null,"L'Affaire Tournesol Divers"]
[19,null,"Coke en Stock Divers"]
[20,null,"Tintin au Tibet"]
[21,null,"Les bijoux de la Castafiore "]
[22,null,"Vol 714 pour Sydney "]
[23,null,"Tintin et les Picaros "]